bitfinex/quotes_ETHUSD_20250430
["timestamp","ask_amount","ask_price","bid_price","bid_amount"]
[1746021457837,0.13746193,1749.7,1748.5,2.83343019]
[1746021458007,7.39603648,1749.6,1748.4,2.85044612]
[1746021458336,3.0,1749.5,1747.9,2.85719027]
[1746021458700,2.4054,1749.5,1748.1,2.87059864]
[1746021458927,2.4054,1749.5,1747.9,2.85719027]
[1746021459122,1.83253648,1749.5,1747.9,2.85719027]
[1746021459325,1.83253648,1749.5,1747.8,14.7021542]
[1746021459326,1.83253648,1749.5,1748.1,2.87059864]
[1746021459736,7.09,1749.6,1748.1,2.87059864]
[1746021460044,7.09,1749.6,1744.8,0.35257923]
[1746021460045,7.09,1749.6,1747.4,2.88015734]
[1746021460214,6.1667,1749.6,1747.4,2.88015734]
[1746021460541,6.1667,1749.6,1747.4,4.29460797]
[1746021460698,5.58826482,1749.6,1747.8,2.83678382]
[1746021460898,4.15216893,1749.6,1747.7,2.88348342]
[1746021461110,4.15216893,1749.6,1747.5,2.83910866]
[1746021461335,4.58133244,1749.6,1747.5,2.83910866]
[1746021461500,4.15216893,1749.6,1747.5,3.60776358]
[1746021461702,3.0,1749.9,1747.6,2.89545876]
[1746021461900,0.55,1749.8,1747.8,2.83678382]
[1746021462097,0.2,1749.7,1747.6,2.89545876]
[1746021462405,0.62142463,1749.9,1747.6,2.89545876]
[1746021462620,18.173864,1750.0,1748.1,2.87059864]
[1746021462809,3.65455899,1749.9,1748.3,2.85452363]
[1746021463012,3.65455899,1749.9,1747.9,2.85719027]
[1746021463209,2.95037942,1749.9,1748.1,2.87059864]
[1746021463411,2.95037942,1749.9,1747.7,2.88348342]
[1746021463611,5.45556032,1749.9,1747.7,3.08348342]
[1746021463810,2.86793124,1749.8,1747.2,3.04791315]
[1746021464037,0.55,1749.3,1747.3,2.89538217]
[1746021464243,0.55,1749.8,1747.7,3.08348342]
[1746021464407,3.55,1749.8,1747.9,0.2]
[1746021464612,0.55,1749.4,1747.5,3.03910866]
[1746021464812,0.55,1749.2,1747.6,0.2]
[1746021465053,9.58,1749.2,1747.6,3.09545876]
[1746021465255,9.58,1749.2,1747.4,2.88015734]
[1746021465436,9.58,1749.2,1747.5,2.83910866]
[1746021465843,9.58,1749.2,1747.5,0.2]
[1746021466171,9.58,1749.2,1747.6,3.09545876]
[1746021466460,9.58,1749.2,1747.8,2.83678382]
[1746021466762,6.03,1749.3,1747.4,3.0]
[1746021467057,0.29913014,1749.1,1747.1,2.86767542]
[1746021467261,0.55,1749.0,1747.1,2.86767542]
[1746021467859,0.55,1749.0,1747.0,11.26434895]
[1746021468457,0.29913014,1749.1,1747.0,11.69315882]
[1746021468825,0.29913014,1749.1,1747.1,3.55]
[1746021470434,0.51491118,1749.0,1747.1,3.55]
[1746021470640,0.51491118,1749.0,1747.4,0.55]
[1746021470845,0.51491118,1748.9,1747.6,3.55]
[1746021471321,0.51491118,1748.8,1747.6,3.55]
[1746021471535,0.51491118,1748.7,1747.8,6.44446304]
[1746021471768,0.51491118,1748.7,1747.9,0.6444463]
[1746021472170,0.30913649,1748.6,1747.9,0.42911121]
[1746021472319,0.82404767,1748.6,1748.0,0.55]
[1746021472520,0.82404767,1748.6,1747.5,11.26434895]
[1746021472749,0.51491118,1748.5,1746.8,2.83208833]
[1746021472975,0.30913649,1748.4,1747.0,11.26434895]
[1746021473422,0.51491118,1748.3,1747.4,0.005]
[1746021473717,0.51491118,1748.3,1747.4,0.43918945]
[1746021473921,0.82404767,1748.2,1747.4,0.42950637]
[1746021474333,0.51491118,1748.1,1747.5,3.0]
[1746021474552,0.51491118,1748.1,1747.6,0.55]
[1746021474760,0.82404767,1748.0,1747.6,3.55]
[1746021474975,0.30913649,1748.0,1747.7,2.85406504]
[1746021475127,0.30913649,1748.0,1747.8,12.47446304]
[1746021475321,2.91688927,1749.0,1747.9,1.2474463]
[1746021475627,2.91688927,1749.0,1748.4,3.0]
[1746021476430,2.91688927,1749.0,1748.4,2.31181999]
[1746021476957,2.91688927,1749.0,1748.4,2.20499945]
[1746021477127,2.91688927,1749.0,1748.4,0.43085197]
[1746021477325,4.75092669,1749.1,1747.9,8.94491051]
[1746021477931,4.75092669,1749.1,1747.9,9.37275043]
[1746021478142,4.75092669,1749.1,1747.9,6.079196]
[1746021478474,4.75092669,1749.1,1748.2,8.94491051]
[1746021478834,4.75092669,1749.1,1748.3,3.0]
[1746021479656,4.75092669,1749.1,1747.9,9.37782788]
[1746021479875,4.75092669,1749.1,1748.0,3.0]
[1746021480762,4.75092669,1749.1,1747.9,9.37782788]
[1746021480937,0.55,1749.0,1747.9,0.43291737]
[1746021481384,4.75092669,1749.1,1747.9,0.43291737]
[1746021481593,0.55,1749.0,1747.9,0.43291737]
[1746021481795,0.55,1749.0,1747.5,2.84066397]
[1746021482158,0.55,1749.0,1747.4,2.85049478]
[1746021482558,0.55,1748.7,1747.4,3.2871557]
[1746021483568,0.55,1748.4,1747.4,2.85049478]
[1746021483888,0.55,1748.4,1745.7,18.929]
[1746021483889,0.55,1748.7,1746.8,3.0]
[1746021484083,0.55,1748.7,1747.1,2.80577822]
[1746021484294,0.55,1748.7,1746.9,2.83263756]
[1746021484511,0.55,1748.7,1746.9,11.77754807]
[1746021484693,13.6958372,1749.1,1747.3,2.82914339]
[1746021484860,13.6958372,1749.1,1747.2,11.94491051]
[1746021484861,4.75092669,1749.1,1748.0,3.0]
[1746021485059,4.15501696,1748.5,1748.0,3.0]
[1746021485293,4.15501696,1748.5,1747.8,3.0]
[1746021485498,3.40602513,1748.5,1747.8,3.0]
[1746021486012,2.72828324,1748.5,1747.8,3.0]
[1746021486157,2.72828324,1748.5,1748.1,3.0]
[1746021486503,2.36688324,1748.5,1748.1,3.0]
[1746021486999,5.84729439,1748.8,1748.4,3.0]
[1746021487558,0.51948849,1748.7,1748.4,3.0]
[1746021487790,0.51948849,1748.7,1748.4,3.43644894]
[1746021487959,0.8311791,1748.6,1748.4,3.43644894]
[1746021488399,0.8311791,1748.6,1748.4,0.43644894]
[1746021488565,0.51948849,1748.5,1747.9,2.83340765]
[1746021488773,5.48339867,1748.8,1748.4,3.0]
[1746021488981,3.70193148,1748.8,1748.4,3.0]
[1746021489211,6.94366209,1749.2,1748.7,3.0]
[1746021490314,6.94366209,1749.2,1748.4,3.0]
[1746021490726,6.94366209,1749.2,1748.7,3.0]
[1746021491592,6.94366209,1749.2,1748.7,3.43177347]
[1746021493417,6.94366209,1749.2,1748.7,0.21673429]
[1746021493587,6.94366209,1749.2,1748.4,3.0]
[1746021493588,2.97013492,1749.2,1748.4,3.0]
[1746021493925,2.97013492,1749.2,1748.7,3.0]
[1746021494407,2.97013492,1749.2,1748.7,3.43796623]
[1746021494608,2.97013492,1749.2,1748.6,8.94491051]
[1746021495011,2.97013492,1749.2,1748.6,9.38137156]
[1746021495685,2.97013492,1749.2,1748.6,0.43646105]
[1746021495882,2.97013492,1749.2,1748.3,11.82770149]
[1746021496518,2.97013492,1749.2,1748.7,3.0]
[1746021496703,2.97013492,1749.2,1748.9,8.94491051]
[1746021496906,2.97013492,1749.2,1749.0,3.0]
[1746021497622,2.97013492,1749.9,1749.0,3.0]
[1746021497828,2.97013492,1749.9,1748.7,3.0]
[1746021498192,2.97013492,1749.9,1748.4,3.0]
[1746021498587,2.97013492,1749.9,1748.7,3.0]
[1746021499222,2.97013492,1749.9,1749.0,3.0]
[1746021499709,2.97013492,1749.9,1748.6,8.94491051]
[1746021499913,2.97013492,1749.9,1748.7,3.0]
[1746021500921,6.94366209,1749.6,1748.7,3.0]
[1746021501123,6.94366209,1749.6,1748.4,2.87780136]
[1746021501442,0.51959819,1749.5,1748.5,5.81980004]
[1746021501942,0.51959819,1749.4,1748.4,3.0]
[1746021502152,0.83137246,1749.4,1748.3,9.38058604]
[1746021502446,0.51959819,1749.3,1748.3,9.38058604]
[1746021502597,0.51959819,1749.3,1748.6,8.94491051]
[1746021502793,0.28987971,1749.4,1749.3,3.0]
[1746021503051,4.37573948,1749.6,1749.3,3.0]
[1746021503256,1.10163492,1749.9,1749.6,3.0]
[1746021503557,6.5220653,1750.3,1750.0,0.55]
[1746021503897,3.510322,1750.6,1750.2,18.52491051]
[1746021504017,1.44353595,1750.6,1750.5,9.49491051]
[1746021504348,1.44353595,1750.6,1750.5,11.94491051]
[1746021504662,1.44353595,1750.6,1750.0,0.28406406]
[1746021504663,1.44353595,1750.6,1750.0,3.43993211]
[1746021505009,1.44353595,1750.6,1750.3,3.0]
[1746021505340,1.44353595,1750.4,1750.2,8.94491051]
[1746021505524,1.44353595,1750.4,1750.0,3.0]
[1746021506945,1.44353595,1750.4,1749.6,0.43142315]
[1746021507107,1.44353595,1750.4,1749.4,8.94491051]
[1746021507429,0.55,1750.9,1749.4,8.94491051]
[1746021507634,8.94491051,1750.7,1748.8,8.94491051]
[1746021507804,0.00624216,1750.5,1748.8,8.94491051]
[1746021508004,0.00624216,1750.5,1748.8,9.36649441]
[1746021508202,0.00624216,1750.5,1748.9,1.18006273]
[1746021508817,0.00624216,1750.5,1749.2,3.0]
[1746021509255,0.00624216,1750.5,1749.1,8.94491051]
[1746021509630,0.00624216,1750.5,1749.2,3.0]
[1746021510417,0.00624216,1750.5,1749.1,8.94491051]
[1746021510862,0.00624216,1750.5,1749.2,3.0]
[1746021511364,0.00624216,1750.5,1749.5,3.0]
[1746021511795,0.00624216,1750.5,1749.5,3.4269117]
[1746021512149,0.00624216,1750.5,1749.5,0.4269117]
[1746021512344,0.00624216,1750.5,1749.1,8.94491051]
[1746021512563,0.00624216,1750.5,1749.5,3.0]
[1746021513388,0.00624216,1750.5,1749.5,0.41990822]
[1746021513596,0.00624216,1750.5,1748.8,8.94491051]
[1746021514051,0.00624216,1750.5,1748.9,3.0]
[1746021514397,0.00624216,1750.5,1748.8,8.94491051]
[1746021514683,0.00624216,1750.5,1748.8,9.37749367]
[1746021514883,0.51978043,1750.4,1748.8,0.43258316]
[1746021515058,0.55,1750.3,1748.5,10.12497324]
[1746021515267,0.86183274,1750.3,1748.5,10.12497324]
[1746021515454,0.86183274,1750.3,1748.6,3.0]
[1746021515650,0.86183274,1750.3,1748.8,8.94491051]
[1746021515880,0.51978043,1750.2,1748.8,8.94491051]
[1746021516074,0.51978043,1750.2,1748.9,3.0]
[1746021516352,0.55,1750.0,1748.8,8.94491051]
[1746021516550,0.55,1750.0,1748.6,0.43361497]
[1746021516757,0.55,1749.8,1748.5,8.94491051]
[1746021516959,19.43778043,1749.7,1748.5,9.37779462]
[1746021517452,0.83161317,1749.6,1748.6,3.0]
[1746021518361,0.83161317,1749.5,1748.6,3.0]
[1746021518878,0.51978043,1749.4,1748.6,3.0]
[1746021519299,0.51978043,1749.3,1748.6,3.0]
[1746021519474,0.83161317,1749.3,1748.5,9.37779462]
[1746021519676,0.51978043,1749.2,1748.5,9.37779462]
[1746021519876,0.51978043,1749.2,1748.5,0.43288411]
[1746021520095,0.31183274,1749.1,1748.2,7.24066896]
[1746021520291,0.51978043,1749.0,1748.2,7.24066896]
[1746021520472,0.51978043,1749.0,1748.3,3.0]
[1746021520670,0.83161317,1748.9,1748.3,3.0]
[1746021521321,0.51978043,1748.8,1748.3,0.42398481]
[1746021521469,0.31183274,1748.7,1748.3,0.42398481]
[1746021521672,0.31183274,1748.7,1748.2,7.24066896]
[1746021521915,0.51978043,1748.6,1748.2,7.24066896]
[1746021522374,0.83161317,1748.5,1748.2,7.24066896]
[1746021522571,0.83161317,1748.5,1748.2,7.66809311]
[1746021522769,0.83161317,1748.5,1747.6,8.94491051]
[1746021523073,2.36183274,1748.4,1747.3,8.94991051]
[1746021523273,2.88161317,1748.4,1747.6,8.94491051]
[1746021523494,0.83785533,1748.4,1747.9,8.94491051]
[1746021523708,0.31183274,1748.3,1747.9,8.94491051]
[1746021523911,0.83161317,1748.3,1747.9,8.94491051]
[1746021524295,0.83161317,1748.2,1747.9,8.94491051]
[1746021524516,0.83161317,1748.2,1748.0,3.0]
[1746021524818,0.07271317,1748.2,1748.0,3.0]
[1746021524981,0.00624216,1748.4,1747.8,3.0]
[1746021525316,0.00624216,1748.4,1748.0,8.94491051]
[1746021525815,0.00624216,1748.4,1747.3,8.94991051]
[1746021525976,0.00624216,1748.4,1747.7,3.0]
[1746021526407,0.00624216,1748.4,1747.9,8.94491051]
[1746021527897,0.00624216,1748.4,1748.0,3.0]
[1746021529194,0.00624216,1748.4,1748.2,8.94491051]
[1746021529627,0.00624216,1748.4,1748.1,3.0]
[1746021529993,0.00624216,1748.4,1748.3,8.94491051]
[1746021531098,0.00624216,1748.4,1748.3,11.94491051]
[1746021531299,0.00624216,1748.4,1748.3,12.36474524]
[1746021531639,18.928,1749.6,1748.3,12.36474524]
[1746021531810,18.928,1749.6,1748.7,8.94491051]
[1746021533293,18.928,1749.6,1748.3,3.41983473]
[1746021533294,18.928,1749.6,1748.5,3.0]
[1746021534223,6.03,1749.5,1748.7,8.94491051]
[1746021534460,18.928,1749.6,1748.7,8.94491051]
[1746021535163,18.928,1749.6,1748.5,3.0]
[1746021535526,18.928,1749.6,1748.7,8.94491051]
[1746021535865,18.928,1749.6,1749.0,8.94491051]
[1746021536028,18.928,1749.6,1748.7,8.94491051]
[1746021536230,18.928,1749.6,1749.0,8.94491051]
[1746021537439,0.52219994,1749.5,1748.4,8.94491051]
[1746021537641,0.31327382,1749.4,1748.4,8.94491051]
[1746021538233,0.52219994,1749.3,1748.4,8.94491051]
[1746021538671,0.83547376,1749.2,1748.4,8.94491051]
[1746021539244,0.52219994,1749.1,1748.4,8.94491051]
[1746021539439,0.83547376,1749.1,1748.4,8.94491051]
[1746021540031,0.52219994,1749.0,1748.4,8.94491051]
[1746021540268,0.83547376,1749.0,1748.4,8.94491051]
[1746021540434,0.52219994,1748.9,1748.1,8.94491051]
[1746021540629,0.52219994,1748.9,1748.1,9.37625337]
[1746021541069,0.83547376,1748.8,1748.1,9.37625337]
[1746021541970,0.83547376,1748.7,1747.9,2.83340765]
[1746021542154,0.83547376,1748.7,1747.8,11.76409128]
[1746021542355,0.52219994,1748.6,1747.6,3.0]
[1746021542654,0.52219994,1748.6,1747.5,8.94491051]
[1746021543047,0.31327382,1748.5,1747.5,8.94491051]
[1746021543243,0.83547376,1748.5,1747.5,8.94491051]
[1746021543646,0.52219994,1748.4,1747.5,8.94491051]
[1746021543847,0.52219994,1748.4,1747.3,0.005]
[1746021544260,0.83547376,1748.3,1747.3,0.005]
[1746021544745,0.52219994,1748.2,1747.3,0.005]
[1746021544945,0.55,1748.1,1747.3,0.005]
[1746021545160,3.31327382,1748.3,1746.6,8.94491051]
[1746021545161,0.83547376,1748.0,1746.6,8.94491051]
[1746021545359,0.52219994,1747.9,1746.7,0.89449105]
[1746021545544,0.52219994,1747.9,1746.8,8.94491051]
[1746021545940,0.52219994,1747.8,1746.8,8.94491051]
[1746021546142,0.52219994,1747.8,1746.5,0.43155683]
[1746021546342,0.52219994,1747.8,1746.5,8.94491051]
[1746021546580,0.83547376,1747.7,1746.5,8.94491051]
[1746021546754,0.83547376,1747.7,1746.3,11.81965072]
[1746021546938,0.52219994,1747.6,1746.6,8.94491051]
[1746021547384,0.31327382,1747.5,1746.3,11.81965072]
[1746021547677,0.83547376,1747.5,1746.3,11.81965072]
[1746021547887,0.83547376,1747.5,1746.4,2.86289515]
[1746021548186,0.83547376,1747.5,1746.6,8.94491051]
[1746021548365,0.83547376,1747.4,1746.6,8.94491051]
[1746021548540,0.83547376,1747.4,1745.2,2.80358905]
[1746021548872,0.83547376,1747.4,1745.9,11.78673522]
[1746021548873,0.55,1747.3,1745.9,11.78673522]
[1746021549087,3.0,1747.1,1745.9,11.78673522]
[1746021549293,0.55,1747.0,1745.9,2.84182471]
[1746021549583,0.52219994,1747.0,1746.2,8.94491051]
[1746021549876,0.52219994,1747.0,1746.8,8.94491051]
[1746021550075,0.52219994,1746.9,1746.8,8.94491051]
[1746021550659,29.40176154,1748.4,1746.8,11.94491051]
[1746021550861,29.40176154,1748.4,1747.5,8.94491051]
[1746021551783,29.40176154,1748.4,1747.2,8.94491051]
[1746021552182,18.937,1748.4,1747.5,8.94491051]
[1746021552477,18.937,1748.4,1746.0,0.2]
[1746021552478,18.937,1748.4,1747.8,8.94491051]
[1746021552687,10.46476154,1748.9,1748.1,8.89758453]
[1746021552893,10.46476154,1748.9,1748.1,8.94491051]
[1746021553864,10.46476154,1748.9,1748.4,8.94491051]
[1746021554687,10.46476154,1748.9,1748.1,8.94491051]
[1746021554969,10.46476154,1748.9,1747.8,8.94491051]
[1746021555398,21.937,1749.3,1748.1,8.94491051]
[1746021555967,21.937,1749.3,1747.8,8.94491051]
[1746021556368,3.0,1749.2,1747.8,8.94491051]
[1746021556705,0.55,1749.1,1747.5,5.25845917]
[1746021557018,18.937,1749.3,1748.1,8.94491051]
[1746021557298,0.55,1749.2,1748.1,8.94491051]
[1746021557495,3.55,1749.2,1747.8,8.94491051]
[1746021557695,18.937,1749.3,1747.8,8.94491051]
[1746021558085,18.937,1749.3,1748.1,8.94491051]
[1746021558415,18.937,1749.3,1748.4,8.94491051]
[1746021558593,18.937,1749.3,1748.1,8.94491051]
[1746021558916,3.55,1749.2,1747.8,8.94491051]
[1746021559196,3.0,1749.2,1747.8,8.94491051]
[1746021559373,18.937,1749.3,1748.1,8.94491051]
[1746021560691,3.0,1749.2,1747.8,8.94491051]
[1746021561088,0.55,1749.1,1747.8,8.94491051]
[1746021561681,0.55,1749.1,1747.0,3.11003037]
[1746021561929,0.55,1748.7,1746.0,2.86606306]
[1746021562143,9.585,1748.5,1746.6,8.94491051]
[1746021563092,10.58600947,1748.5,1746.3,8.94491051]
[1746021563292,13.41307106,1748.5,1746.3,8.94491051]
[1746021563532,9.585,1748.2,1746.3,8.94491051]
[1746021563824,9.585,1748.2,1746.0,11.75142203]
[1746021563825,0.55,1747.5,1746.0,11.75142203]
[1746021564059,9.585,1747.5,1746.0,2.80651152]
[1746021564191,10.00915489,1747.5,1745.9,1.17867352]
[1746021564391,0.55,1747.3,1746.0,11.75142203]
[1746021564633,0.55,1747.3,1746.0,2.80651152]
[1746021564787,0.55,1747.3,1745.9,1.17867352]
[1746021565095,0.55,1747.3,1745.6,8.94491051]
[1746021565302,0.55,1747.1,1745.6,8.94491051]
[1746021565502,0.55,1746.9,1745.0,8.94491051]
[1746021565743,0.55,1746.5,1745.1,0.4092302]
[1746021565893,3.55,1746.5,1745.1,0.4092302]
[1746021566093,18.937,1746.8,1745.1,0.4092302]
[1746021566293,3.0,1746.7,1745.1,0.4092302]
[1746021566545,0.55,1746.6,1745.1,0.4092302]
[1746021566728,0.86116452,1746.6,1745.1,0.4092302]
[1746021567029,0.55,1746.1,1745.1,0.4092302]
[1746021567231,0.55,1746.1,1742.5,11.72006638]
[1746021567232,8.94491051,1745.3,1744.1,2.81123838]
[1746021567395,6.4442302,1745.1,1743.4,6.52546598]
[1746021567734,20.61751591,1745.0,1743.4,6.52546598]
[1746021567932,3.0,1744.9,1743.4,6.52546598]
[1746021568105,3.0,1744.7,1743.4,6.52546598]
[1746021568305,3.56717461,1744.9,1743.4,5.26866598]
[1746021568306,3.0,1744.3,1743.4,5.26866598]
[1746021568505,0.31116452,1744.2,1743.5,0.19738993]
[1746021568996,0.51551674,1744.1,1743.5,0.16789564]
[1746021569194,0.31116452,1744.0,1743.2,7.27984355]
[1746021569418,0.87601793,1743.9,1743.2,6.71015064]
[1746021569634,3.0,1743.7,1743.3,0.17442656]
[1746021569900,0.2,1743.2,1741.8,13.98846632]
[1746021570099,8.94491051,1742.8,1741.8,8.75363494]
[1746021570395,1.26026578,1743.1,1741.8,8.75363494]
[1746021570396,1.46086012,1742.7,1741.8,8.75363494]
[1746021570620,0.51551674,1742.7,1741.8,8.75363494]
[1746021570827,0.51551674,1742.7,1741.2,11.49449036]
[1746021570828,0.51551674,1742.7,1741.4,7.25193953]
[1746021571009,0.51551674,1742.6,1741.7,8.94491051]
[1746021571217,18.945,1743.8,1742.2,3.0]
[1746021571398,18.945,1743.8,1741.7,0.93541407]
[1746021571399,18.945,1743.8,1742.4,8.94491051]
[1746021571639,18.945,1743.8,1741.4,7.25193953]
[1746021571640,2.19120433,1743.7,1741.4,7.25193953]
[1746021571838,3.0,1743.4,1741.4,7.25193953]
[1746021572079,8.94491051,1743.0,1741.4,7.25193953]
[1746021572260,1.46532654,1742.9,1741.5,8.94491051]
[1746021572592,0.30347749,1742.9,1742.7,8.94491051]
[1746021572880,18.96,1744.2,1742.7,8.94491051]
[1746021573076,18.96,1744.2,1743.4,8.94491051]
[1746021573275,7.584,1745.7,1743.4,8.94491051]
[1746021573276,0.4314346,1744.8,1743.4,8.94491051]
[1746021573446,19.40288361,1745.2,1743.4,8.94491051]
[1746021573647,19.40288361,1745.2,1743.8,8.94491051]
[1746021574039,19.40288361,1745.2,1743.1,8.94491051]
[1746021574240,19.40288361,1745.2,1743.9,8.94491051]
[1746021574480,8.19361814,1744.1,1743.9,8.94491051]
[1746021575667,8.19361814,1744.1,1740.2,14.5]
[1746021575668,8.19361814,1744.1,1743.5,8.94491051]
[1746021575867,8.19361814,1744.1,1743.9,8.94491051]
[1746021576377,17.59208428,1745.1,1743.9,8.94491051]
[1746021576378,6.92729231,1745.3,1744.0,0.12953699]
[1746021576544,6.92729231,1745.3,1744.3,3.1225783]
[1746021577069,9.92729231,1745.3,1744.3,3.1225783]
[1746021577262,6.92729231,1745.3,1744.3,3.1225783]
[1746021577667,6.92729231,1745.3,1744.0,8.94491051]
[1746021577864,3.0,1745.1,1744.0,8.94491051]
[1746021578466,0.2997617,1745.0,1743.6,8.94491051]
[1746021578668,0.2997617,1745.0,1743.0,8.94491051]
[1746021578978,5.90611903,1745.1,1743.8,8.94491051]
[1746021579224,6.20589326,1745.1,1743.8,8.94491051]
[1746021579373,5.90611903,1745.1,1743.8,8.94491051]
[1746021579771,0.29971807,1745.3,1744.6,8.94491051]
[1746021580072,6.92729231,1746.0,1744.7,8.94491051]
[1746021580277,3.0,1745.9,1743.7,0.05731939]
[1746021580470,18.976,1745.9,1745.1,8.94491051]
[1746021580710,3.0,1745.8,1745.1,8.94491051]
[1746021580874,18.976,1745.9,1745.1,8.94491051]
[1746021581071,6.92729231,1745.3,1745.1,8.94491051]
[1746021581609,6.92729231,1745.3,1745.1,3.80837668]
[1746021582811,8.19361814,1745.7,1745.1,3.80837668]
[1746021583325,0.55,1746.6,1745.1,3.80837668]
[1746021583625,0.45,1746.6,1745.1,8.94491051]
[1746021583918,0.50652041,1746.5,1744.7,8.94491051]
[1746021584379,0.50652041,1746.4,1744.7,8.94491051]
[1746021584580,0.50652041,1746.4,1745.1,8.94491051]
[1746021584806,0.3044106,1746.3,1745.1,8.94491051]
[1746021585118,0.3044106,1746.3,1744.8,8.94491051]
[1746021585119,0.50652041,1746.2,1744.8,8.94491051]
[1746021585692,0.3044106,1746.1,1744.8,8.94491051]
[1746021586018,0.50652041,1746.0,1744.8,8.94491051]
[1746021586578,0.3044106,1745.9,1744.8,8.94491051]
[1746021586777,0.3044106,1745.9,1745.2,8.94491051]
[1746021587218,0.50652041,1745.8,1745.2,8.94491051]
[1746021587414,0.50652041,1745.8,1744.6,0.55]
[1746021587618,0.3044106,1745.9,1745.4,8.94491051]
[1746021587822,0.3044106,1745.9,1745.4,5.64573996]
[1746021588180,0.3044106,1745.9,1745.8,8.94491051]
[1746021588722,5.8428953,1746.8,1745.8,8.94491051]
[1746021588883,5.8428953,1746.8,1746.2,8.94491051]
[1746021589630,5.8428953,1746.8,1746.6,8.94491051]
[1746021590193,5.8428953,1747.0,1746.6,8.94491051]
[1746021590400,5.8428953,1747.0,1746.9,8.94491051]
[1746021590630,8.19361814,1747.6,1746.0,0.05724585]
[1746021590835,8.19361814,1747.6,1746.9,8.94491051]
[1746021591235,0.51333955,1747.5,1746.9,8.94491051]
[1746021591545,0.51333955,1747.4,1746.9,8.94491051]
[1746021591917,0.51333955,1747.5,1746.9,8.94491051]
[1746021592109,3.51333955,1747.5,1746.9,8.94491051]
[1746021592631,0.51333955,1747.4,1746.9,8.94491051]
[1746021593037,3.51333955,1747.5,1746.9,8.94491051]
[1746021593531,0.51333955,1747.4,1746.5,8.94491051]
[1746021593735,0.51333955,1747.4,1745.6,3.0]
[1746021593736,0.51333955,1747.4,1746.9,8.94491051]
[1746021593903,0.51333955,1747.3,1746.9,8.94491051]
[1746021594324,0.51333955,1747.2,1746.9,4.91768311]
[1746021594530,0.51333955,1747.2,1746.9,8.94491051]
[1746021594756,0.51333955,1747.1,1746.9,8.94491051]
[1746021594953,0.51333955,1747.1,1745.4,18.969]
[1746021595153,0.51333955,1747.1,1746.3,8.94491051]
[1746021595353,0.51333955,1747.1,1746.7,8.94491051]
[1746021595634,0.51333955,1747.0,1746.7,8.94491051]
[1746021595832,0.50133955,1747.0,1746.7,8.94491051]
[1746021596373,6.035,1748.5,1746.7,8.94491051]
[1746021596676,6.035,1747.9,1746.7,8.94491051]
[1746021597035,9.035,1747.8,1746.7,8.94491051]
[1746021597231,9.035,1748.5,1746.7,6.38184932]
[1746021597436,0.55,1748.4,1746.7,6.38184932]
[1746021597681,0.55,1748.0,1746.7,6.38184932]
[1746021597886,6.035,1747.9,1746.7,6.38184932]
[1746021598098,0.55,1747.4,1746.1,8.94491051]
[1746021598253,6.035,1747.5,1746.1,8.94491051]
[1746021598458,3.0,1747.3,1746.1,8.94491051]
[1746021598788,0.55,1747.7,1746.1,8.94491051]
[1746021599080,0.55,1747.7,1745.2,3.0]
[1746021599081,0.29929894,1747.8,1746.5,8.94491051]
[1746021599481,0.55,1747.7,1746.1,8.94491051]
[1746021599662,0.55,1747.5,1746.1,8.94491051]
[1746021599861,6.035,1747.2,1746.1,8.94491051]
[1746021600065,0.55,1747.6,1746.1,8.94491051]
[1746021600461,0.55,1747.6,1744.8,18.954]
[1746021600462,0.29929566,1747.7,1745.7,8.94491051]
[1746021600699,6.585,1747.4,1745.7,8.94491051]
[1746021600881,3.0,1747.1,1745.2,8.94491051]
[1746021601085,6.585,1746.8,1743.9,3.07813743]
[1746021601282,22.11490645,1747.3,1743.8,18.953]
[1746021601283,9.035,1746.7,1745.4,8.57255511]
[1746021601487,0.30778906,1746.6,1745.9,8.94491051]
[1746021601791,0.30778906,1746.6,1745.1,8.94491051]
[1746021601792,6.585,1746.5,1745.1,8.94491051]
[1746021602003,3.0,1746.4,1745.1,8.94491051]
[1746021602211,3.0,1746.2,1745.1,8.94491051]
[1746021602417,0.30778906,1746.3,1745.1,8.94491051]
[1746021602917,0.30778906,1746.3,1745.9,8.94491051]
[1746021603212,0.30778906,1747.2,1745.5,8.94491051]
[1746021603500,6.34278906,1747.2,1745.2,0.05729056]
[1746021603810,0.30778906,1747.2,1746.4,8.94491051]
[1746021604108,2.92824203,1747.4,1745.4,0.2]
[1746021604109,0.30778906,1747.1,1745.4,0.05726344]
[1746021604264,0.30778906,1747.1,1746.6,8.94491051]
[1746021604665,0.30778906,1747.1,1744.9,3.51672973]
[1746021604920,0.30778906,1747.1,1745.2,8.94491051]
[1746021605066,6.035,1746.9,1746.0,8.94491051]
[1746021605273,6.035,1746.5,1746.0,8.94491051]
[1746021605704,0.30778906,1747.0,1746.4,8.94491051]
[1746021605910,0.30778906,1747.0,1746.1,8.94491051]
[1746021606201,0.30778906,1746.9,1746.5,8.94491051]
[1746021606588,0.30778906,1746.9,1745.4,0.05726434]
[1746021606907,18.956,1747.2,1745.2,3.0]
[1746021606908,6.035,1746.7,1745.8,8.94491051]
[1746021607123,6.035,1746.7,1744.3,0.05727469]
[1746021607124,6.035,1746.3,1745.4,8.94491051]
[1746021607271,6.035,1746.1,1744.9,2.85206868]
[1746021607480,6.035,1745.7,1744.7,2.80665259]
[1746021607676,0.55,1745.4,1743.1,2.88080591]
[1746021607933,4.44166267,1745.3,1743.7,8.39491051]
[1746021608075,2.84832534,1745.1,1742.3,0.05735482]
[1746021608276,3.51773975,1745.0,1744.3,8.94491051]
[1746021608584,0.82552881,1745.0,1744.3,8.94491051]
[1746021608790,6.86052881,1745.0,1743.6,0.05732884]
[1746021608988,6.86052881,1745.0,1744.5,8.94491051]
[1746021609201,0.51773975,1744.9,1744.5,8.94491051]
[1746021609445,18.961,1746.6,1744.8,8.94491051]
[1746021609738,6.035,1746.8,1745.6,8.94491051]
[1746021609889,19.91624543,1746.9,1745.6,8.94491051]
[1746021609890,6.035,1746.6,1745.6,8.94491051]
[1746021610215,18.961,1746.9,1745.6,8.94491051]
[1746021610401,18.961,1746.9,1746.0,8.94491051]
[1746021610603,18.961,1746.9,1745.3,8.94491051]
[1746021610604,10.27258118,1746.2,1745.3,8.94491051]
[1746021610826,17.26282661,1746.2,1744.0,0.05729934]
[1746021611041,9.035,1745.9,1745.0,8.94491051]
[1746021611242,0.55,1745.8,1744.6,8.94491051]